bitfinex/quotes_BTCUSD_20240607
["timestamp","ask_amount","ask_price","bid_price","bid_amount"]
[1717747893383,1.732802,71109.0,71108.0,0.73884364]
[1717747894219,1.733802,71109.0,71108.0,0.74184364]
[1717747894428,1.733802,71109.0,71108.0,0.6696154]
[1717747894632,1.733802,71109.0,71108.0,0.21329647]
[1717747894844,1.813602,71109.0,71108.0,0.21329647]
[1717747895052,1.966302,71109.0,71108.0,0.21329647]
[1717747895276,2.106931,71109.0,71108.0,0.003]
[1717747895481,2.106931,71109.0,71108.0,0.008]
[1717747895482,2.27202298,71109.0,71108.0,0.008]
[1717747895693,2.27102298,71109.0,71108.0,0.005]
[1717747895914,0.2389,71101.0,71093.0,0.077493]
[1717747896124,0.2389,71101.0,71096.0,0.091894]
[1717747896775,0.2389,71101.0,71100.0,0.21029647]
[1717747897598,0.2389,71101.0,71099.0,0.068]
[1717747898343,0.2509,71101.0,71099.0,0.068]
[1717747898841,0.140648,71099.0,71098.0,0.21029647]
[1717747899685,0.140652,71097.0,71096.0,0.23419047]
[1717747900575,0.140652,71097.0,71096.0,0.023894]
[1717747901630,0.140652,71097.0,71096.0,0.23419047]
[1717747901833,0.146652,71097.0,71096.0,0.23419047]
[1717747902464,0.152652,71097.0,71096.0,0.23419047]
[1717747902666,0.146652,71097.0,71096.0,0.23419047]
[1717747902869,0.14637072,71097.0,71096.0,0.23419047]
[1717747903080,0.14037072,71097.0,71096.0,0.23419047]
[1717747904612,0.14737072,71097.0,71096.0,0.23419047]
[1717747905329,0.16037072,71097.0,71096.0,0.23419047]
[1717747905772,0.15337072,71097.0,71096.0,0.23419047]
[1717747906225,0.15937072,71097.0,71096.0,0.23419047]
[1717747907134,0.15937072,71097.0,71096.0,0.023894]
[1717747907790,0.15937072,71097.0,71096.0,0.23419047]
[1717747913081,0.15937072,71097.0,71096.0,0.23369047]
[1717747913460,0.019,71097.0,71096.0,0.24369047]
[1717747913681,0.019,71097.0,71096.0,0.38391871]
[1717747915405,0.019,71097.0,71096.0,0.61271871]
[1717747916253,0.013,71097.0,71096.0,0.61271871]
[1717747917324,0.00086,71101.0,71100.0,0.22029647]
[1717747917533,0.00086,71101.0,71100.0,0.52249647]
[1717747918891,0.00186,71101.0,71100.0,0.52649647]
[1717747919302,0.00286,71101.0,71100.0,0.53349647]
[1717747919460,0.00186,71101.0,71100.0,0.52949647]
[1717747919868,0.00186,71101.0,71100.0,0.29529647]
[1717747920486,0.00086,71101.0,71100.0,0.28829647]
[1717747920909,0.00186,71101.0,71100.0,0.28429647]
[1717747921367,0.00186,71101.0,71100.0,0.29129647]
[1717747921565,0.00286,71101.0,71100.0,0.29729647]
[1717747922027,0.00086,71101.0,71100.0,0.28829647]
[1717747922237,0.00086,71101.0,71100.0,0.29129647]
[1717747922477,0.00286,71101.0,71100.0,0.29729647]
[1717747922862,0.00186,71101.0,71100.0,0.29429647]
[1717747923285,0.00286,71101.0,71100.0,0.29729647]
[1717747923641,0.00186,71101.0,71100.0,0.22329647]
[1717747923828,0.00186,71101.0,71100.0,0.29129647]
[1717747924058,0.00286,71101.0,71100.0,0.21929647]
[1717747924304,0.24186,71101.0,71100.0,0.21929647]
[1717747925155,0.24186,71101.0,71100.0,0.28729647]
[1717747927128,0.382504,71101.0,71100.0,0.21929647]
[1717747927818,0.381504,71101.0,71100.0,0.21329647]
[1717747928015,0.380504,71101.0,71100.0,0.21029647]
[1717747928151,0.381504,71101.0,71100.0,0.21629647]
[1717747928390,0.382504,71101.0,71100.0,0.21929647]
[1717747928838,0.381504,71101.0,71100.0,0.21629647]
[1717747929220,0.385504,71101.0,71100.0,0.21029647]
[1717747929979,0.380504,71101.0,71100.0,0.21029647]
[1717747930604,0.385504,71101.0,71100.0,0.21029647]
[1717747930817,0.379404,71101.0,71100.0,0.21029647]
[1717747931024,0.374404,71101.0,71100.0,0.27829647]
[1717747931443,0.384404,71101.0,71100.0,0.27829647]
[1717747932417,0.384404,71101.0,71100.0,0.068]
[1717747932620,0.384404,71101.0,71100.0,0.27829647]
[1717747934127,0.384404,71101.0,71100.0,0.21029647]
[1717747934338,0.384404,71101.0,71100.0,0.27829647]
[1717747936017,0.384404,71101.0,71100.0,0.21029647]
[1717747936255,0.24301348,71101.0,71099.0,0.2]
[1717747936490,0.39685748,71101.0,71096.0,0.023394]
[1717747936691,0.2461,71100.0,71099.0,0.21029647]
[1717747936894,0.386746,71100.0,71099.0,0.21029647]
[1717747937026,0.386746,71100.0,71099.0,0.2]
[1717747937235,0.14065,71098.0,71097.0,0.2]
[1717747937439,0.14065,71098.0,71097.0,0.21029647]
[1717747937440,0.38905,71098.0,71097.0,0.21029647]
[1717747938693,0.39005,71098.0,71097.0,0.21029647]
[1717747939581,0.39105,71098.0,71097.0,0.21029647]
[1717747941950,0.140652,71097.0,71096.0,0.23369047]
[1717747943604,0.140652,71097.0,71096.0,0.023394]
[1717747943740,0.140652,71097.0,71096.0,0.024394]
[1717747943960,0.140652,71097.0,71096.0,0.23469047]
[1717747949269,0.140652,71097.0,71096.0,0.24469047]
[1717747949475,0.13959735,71097.0,71096.0,0.23469047]
[1717747949672,0.13924578,71097.0,71096.0,0.23469047]
[1717747949889,0.13924578,71097.0,71096.0,0.30269047]
[1717747954836,0.13924578,71097.0,71096.0,0.31269047]
[1717747955044,0.13924578,71097.0,71096.0,0.30269047]
[1717747956959,0.13924578,71097.0,71096.0,0.23469047]
[1717747957245,0.13924578,71097.0,71096.0,0.30269047]
[1717747957705,0.28366471,71097.0,71096.0,0.024394]
[1717747957923,0.56434253,71097.0,71096.0,0.024394]
[1717747958133,0.81434253,71097.0,71096.0,0.024394]
[1717747958347,0.90004649,71097.0,71096.0,0.024394]
[1717747958780,0.86486867,71097.0,71096.0,0.023394]
[1717747959019,0.86486867,71097.0,71096.0,0.024394]
[1717747960352,0.8019672,71097.0,71096.0,0.023394]
[1717747960568,0.8159672,71097.0,71096.0,0.023394]
[1717747961085,0.8019672,71097.0,71096.0,0.023394]
[1717747961333,0.83507957,71097.0,71096.0,0.023394]
[1717747961782,0.84907957,71097.0,71096.0,0.023394]
[1717747963241,1.13038457,71097.0,71096.0,0.023394]
[1717747963715,1.13124457,71097.0,71096.0,0.023394]
[1717747963927,1.17503006,71097.0,71096.0,0.023394]
[1717747964415,1.11212859,71097.0,71096.0,0.023394]
[1717747966338,1.08932971,71097.0,71096.0,0.023394]
[1717747967399,1.1312189,71097.0,71096.0,0.023394]
[1717747967818,1.08932971,71097.0,71096.0,0.023394]
[1717747968703,1.11212728,71097.0,71096.0,0.023394]
[1717747968930,1.19187164,71097.0,71096.0,0.023394]
[1717747969406,1.12897017,71097.0,71096.0,0.023394]
[1717747973340,1.1061726,71097.0,71096.0,0.023394]
[1717747974589,1.33698922,71097.0,71096.0,0.023394]
[1717747975017,1.27408775,71097.0,71096.0,0.023394]
[1717747977061,1.12896988,71097.0,71096.0,0.023394]
[1717747977288,1.41027488,71097.0,71096.0,0.023394]
[1717747978081,1.39627488,71097.0,71096.0,0.023394]
[1717747978514,1.46427488,71097.0,71096.0,0.023394]
[1717747978868,1.47827488,71097.0,71096.0,0.023394]
[1717747979332,1.4781056,71097.0,71096.0,0.023394]
[1717747979572,1.25961641,71097.0,71096.0,0.023394]
[1717747979999,1.22281913,71097.0,71096.0,0.023394]
[1717747980237,1.20881913,71097.0,71096.0,0.023394]
[1717747980668,1.23681913,71097.0,71096.0,0.023394]
[1717747981957,1.16881913,71097.0,71096.0,0.023394]
[1717747982161,1.23681913,71097.0,71096.0,0.023394]
[1717747982381,1.23681913,71097.0,71096.0,0.02989345]
[1717747983768,0.90647624,71097.0,71096.0,0.023394]
[1717747983980,0.84366043,71097.0,71096.0,0.023394]
[1717747984220,0.84366043,71097.0,71096.0,0.22989345]
[1717747984446,0.84366043,71097.0,71096.0,0.26389345]
[1717747984655,0.84366043,71097.0,71096.0,0.257394]
[1717747984865,0.84366043,71097.0,71096.0,0.10519345]
[1717747985081,0.84366043,71097.0,71096.0,0.02989345]
[1717747985997,0.82966043,71097.0,71096.0,0.02989345]
[1717747986213,0.87043687,71097.0,71096.0,0.023394]
[1717747986453,1.18734995,71097.0,71096.0,0.023394]
[1717747986673,1.19734995,71097.0,71096.0,0.023394]
[1717747987343,1.19824166,71097.0,71096.0,0.023394]
[1717747987544,1.21224166,71097.0,71096.0,0.023394]
[1717747987765,1.22624166,71097.0,71096.0,0.023394]
[1717747987981,1.29424166,71097.0,71096.0,0.023394]
[1717747988836,1.23142585,71097.0,71096.0,0.023394]
[1717747989275,1.29424166,71097.0,71096.0,0.023394]
[1717747990918,1.00816522,71097.0,71096.0,0.023394]
[1717747991388,0.9344577,71097.0,71096.0,0.023394]
[1717747991591,1.0902577,71097.0,71096.0,0.023394]
[1717747991783,1.13214893,71097.0,71096.0,0.023394]
[1717747993122,1.20744893,71097.0,71096.0,0.023394]
[1717747993342,1.24888565,71097.0,71096.0,0.023394]
[1717747994878,1.24889035,71097.0,71096.0,0.023394]
[1717747995284,1.20699442,71097.0,71096.0,0.023394]
[1717747997333,1.26981023,71097.0,71096.0,0.023394]
[1717747998396,1.20181023,71097.0,71096.0,0.023394]
[1717747998581,1.26981023,71097.0,71096.0,0.023394]
[1717747999214,0.8664577,71097.0,71096.0,0.023394]
[1717747999413,0.92935413,71097.0,71096.0,0.023394]
[1717747999610,0.8664577,71097.0,71096.0,0.023394]
[1717748000211,0.92935413,71097.0,71096.0,0.023394]
[1717748000900,0.8664577,71097.0,71096.0,0.023394]
[1717748001301,0.92935413,71097.0,71096.0,0.023394]
[1717748002241,0.95032633,71097.0,71096.0,0.023394]
[1717748002672,0.95039496,71097.0,71096.0,0.023394]
[1717748003253,0.8664577,71097.0,71096.0,0.023394]
[1717748004653,0.97137927,71097.0,71096.0,0.023394]
[1717748005067,0.8664577,71097.0,71096.0,0.023394]
[1717748005274,0.97137927,71097.0,71096.0,0.023394]
[1717748005859,0.8664577,71097.0,71096.0,0.023394]
[1717748006205,0.9344577,71097.0,71096.0,0.023394]
[1717748006599,0.8664577,71097.0,71096.0,0.023394]
[1717748006814,0.97143384,71097.0,71096.0,0.023394]
[1717748007723,0.8664577,71097.0,71096.0,0.023394]
[1717748008640,0.8664577,71097.0,71096.0,0.223394]
[1717748008851,0.8664577,71097.0,71096.0,0.023394]
[1717748009394,0.95043552,71097.0,71096.0,0.023394]
[1717748009893,0.8664577,71097.0,71096.0,0.023394]
[1717748010359,0.8664577,71097.0,71096.0,0.23369047]
[1717748010360,0.95043344,71097.0,71096.0,0.23369047]
[1717748010797,0.95043344,71097.0,71096.0,0.47439047]
[1717748011462,0.90664438,71097.0,71096.0,0.47439047]
[1717748011877,0.90664438,71097.0,71096.0,0.023394]
[1717748012112,0.90664438,71097.0,71096.0,0.223394]
[1717748012315,0.90664438,71097.0,71096.0,0.023394]
[1717748013696,0.9064751,71097.0,71096.0,0.023394]
[1717748016115,0.9064751,71097.0,71096.0,0.47439047]
[1717748016336,0.84349115,71097.0,71096.0,0.47439047]
[1717748016559,0.86267839,71097.0,71096.0,0.464094]
[1717748016785,0.86267839,71097.0,71096.0,0.47439047]
[1717748017003,0.92566234,71097.0,71096.0,0.464094]
[1717748017218,0.94845982,71097.0,71096.0,0.464094]
[1717748017491,0.92566234,71097.0,71096.0,0.464094]
[1717748017709,0.92566234,71097.0,71096.0,0.264094]
[1717748018608,0.92566234,71097.0,71096.0,0.103494]
[1717748019048,0.92566234,71097.0,71096.0,0.23369047]
[1717748019261,0.64435734,71097.0,71096.0,0.31589047]
[1717748019478,0.58137339,71097.0,71096.0,0.31589047]
[1717748020887,0.6233418,71097.0,71096.0,0.31589047]
[1717748021297,0.58137339,71097.0,71096.0,0.31589047]
[1717748021712,0.58137339,71097.0,71096.0,0.31379047]
[1717748022690,0.58137339,71097.0,71096.0,0.303494]
[1717748022896,0.58137339,71097.0,71096.0,0.31379047]
[1717748023331,0.58137339,71097.0,71096.0,0.303494]
[1717748024652,0.58137339,71097.0,71096.0,0.023394]
[1717748024886,0.58137339,71097.0,71096.0,0.223394]
[1717748025094,0.58137339,71097.0,71096.0,0.23369047]
[1717748025095,0.6233418,71097.0,71096.0,0.23369047]
[1717748025331,0.58137339,71097.0,71096.0,0.223394]
[1717748025538,0.6233425,71097.0,71096.0,0.023394]
[1717748026847,0.6233425,71097.0,71096.0,0.223394]
[1717748027070,0.6233425,71097.0,71096.0,0.023394]
[1717748028938,0.8657425,71097.0,71096.0,0.023394]
[1717748029146,0.82377339,71097.0,71096.0,0.023394]
[1717748032915,0.84657003,71097.0,71096.0,0.023394]
[1717748034208,1.23279884,71097.0,71096.0,0.023394]
[1717748034418,1.12787503,71097.0,71096.0,0.023394]
[1717748039453,1.18238531,71097.0,71096.0,0.023394]
[1717748040183,1.56369031,71097.0,71096.0,0.023394]
[1717748040628,1.57579733,71097.0,71096.0,0.023394]
[1717748041048,1.56179733,71097.0,71096.0,0.023394]
[1717748041261,1.57279733,71097.0,71096.0,0.023394]
[1717748041908,1.54779733,71097.0,71096.0,0.023394]
[1717748042117,1.55879733,71097.0,71096.0,0.023394]
[1717748042530,1.54779733,71097.0,71096.0,0.023394]
[1717748042933,1.55977397,71097.0,71096.0,0.023394]
[1717748043092,1.68556393,71097.0,71096.0,0.023394]
[1717748043624,1.69756393,71097.0,71096.0,0.023394]
[1717748045009,1.57177397,71097.0,71096.0,0.023394]
[1717748046531,1.63977397,71097.0,71096.0,0.023394]
[1717748046952,1.41726369,71097.0,71096.0,0.023394]
[1717748047154,1.48526369,71097.0,71096.0,0.023394]
[1717748048985,1.47315667,71097.0,71096.0,0.023394]
[1717748049215,1.49789271,71097.0,71096.0,0.023394]
[1717748049901,1.49789336,71097.0,71096.0,0.023394]
[1717748050348,1.49789887,71097.0,71096.0,0.023394]
[1717748051630,1.33649887,71097.0,71096.0,0.023394]
[1717748051808,1.25549887,71097.0,71096.0,0.023394]
[1717748052565,1.29226713,71097.0,71096.0,0.023394]
[1717748052748,1.36026713,71097.0,71096.0,0.023394]
[1717748053088,1.26753042,71097.0,71096.0,0.023394]
[1717748053305,1.33553042,71097.0,71096.0,0.178194]
[1717748053737,1.33553042,71097.0,71096.0,0.023394]
[1717748056726,1.23076231,71097.0,71096.0,0.023394]
[1717748057788,0.98850974,71097.0,71096.0,0.023394]
[1717748058003,0.94945731,71097.0,71096.0,0.023394]
[1717748058853,1.01246978,71097.0,71096.0,0.023394]
[1717748059049,0.98967314,71097.0,71096.0,0.023394]
[1717748059251,1.01245414,71097.0,71096.0,0.023394]
[1717748059455,1.01245414,71097.0,71096.0,0.101294]
[1717748059456,0.92681218,71097.0,71096.0,0.101294]
[1717748059862,1.01245412,71097.0,71096.0,0.101294]
[1717748060901,0.98967314,71097.0,71096.0,0.101294]
[1717748061436,1.01245435,71097.0,71096.0,0.101294]
[1717748062098,0.94959339,71097.0,71096.0,0.101294]
[1717748062305,0.98967314,71097.0,71096.0,0.101294]
[1717748062510,1.01246195,71097.0,71096.0,0.101294]
[1717748063133,1.01246195,71097.0,71096.0,0.023394]
[1717748063541,0.94960099,71097.0,71096.0,0.023394]
[1717748063962,1.01246195,71097.0,71096.0,0.023394]
[1717748064582,0.94446195,71097.0,71096.0,0.46919047]
[1717748064797,0.35587706,71097.0,71096.0,0.46919047]
[1717748065025,0.33308825,71097.0,71096.0,0.46919047]
[1717748065282,0.18308825,71097.0,71096.0,0.47919047]
[1717748065479,0.18308825,71097.0,71096.0,0.53719047]
[1717748065692,0.15908825,71097.0,71096.0,0.53719047]
[1717748065903,0.17308825,71097.0,71096.0,0.53719047]
[1717748066115,0.27308825,71097.0,71096.0,0.53719047]
[1717748066326,0.25908825,71097.0,71096.0,0.53719047]
[1717748066540,0.28308825,71097.0,71096.0,0.53719047]
[1717748066951,0.26908825,71097.0,71096.0,0.53719047]
[1717748067596,0.27908825,71097.0,71096.0,0.53719047]
[1717748068474,0.25976722,71097.0,71096.0,0.53719047]
[1717748070229,0.25976722,71097.0,71096.0,0.46919047]
[1717748075007,0.25976722,71097.0,71096.0,0.53719047]
[1717748084197,0.25976722,71097.0,71096.0,0.54719047]
[1717748084198,0.02086,71097.0,71096.0,0.54719047]
[1717748085196,0.01086,71097.0,71096.0,0.54719047]
[1717748085393,0.00086,71097.0,71096.0,0.54719047]
[1717748085644,0.00686,71097.0,71096.0,0.54719047]
[1717748085874,0.01286,71097.0,71096.0,0.54719047]
[1717748086078,0.00686,71097.0,71096.0,0.54719047]
[1717748086286,0.00086,71097.0,71096.0,0.54719047]
[1717748086515,0.00086,71097.0,71096.0,0.54819047]
[1717748089305,0.00086,71097.0,71096.0,0.8926094]
[1717748089525,0.00086,71097.0,71096.0,1.0352634]
[1717748089847,0.00086,71097.0,71096.0,1.0563813]
[1717748090680,0.00086,71097.0,71096.0,1.1793813]
[1717748090887,0.00086,71097.0,71096.0,1.1572634]
[1717748091131,0.00086,71097.0,71096.0,1.1592634]
[1717748091476,0.00186,71097.0,71096.0,1.1592634]
[1717748091936,0.00086,71097.0,71096.0,1.1572634]
[1717748092140,0.00186,71097.0,71096.0,1.1592634]
[1717748092944,0.00286,71097.0,71096.0,1.1622634]
[1717748098896,0.00286,71097.0,71096.0,1.17873928]
[1717748100843,0.00286,71097.0,71096.0,1.32673928]
[1717748101880,0.00286,71097.0,71096.0,1.52673928]
[1717748108403,0.00011348,71101.0,71100.0,0.994546]
[1717748108638,0.00011348,71101.0,71100.0,1.2302614]
[1717748109656,0.00211348,71101.0,71100.0,1.2342614]
[1717748110096,0.00211348,71101.0,71100.0,1.0322614]
[1717748110932,0.00211348,71101.0,71100.0,0.9642614]
[1717748111172,0.00211348,71101.0,71100.0,0.8412614]
[1717748111387,0.00211348,71101.0,71100.0,0.7574614]
[1717748111601,0.16541348,71101.0,71100.0,0.23861676]
[1717748111815,0.24701348,71101.0,71100.0,0.23861676]
[1717748112041,0.24701348,71101.0,71100.0,0.30661676]
[1717748112543,0.24701348,71101.0,71100.0,0.30461676]
[1717748112544,0.24601348,71101.0,71100.0,0.30461676]
[1717748112774,0.24701348,71101.0,71100.0,0.30761676]
[1717748112990,0.24701348,71101.0,71100.0,0.30561676]
[1717748112991,0.24601348,71101.0,71100.0,0.30561676]
[1717748113223,0.24701348,71101.0,71100.0,0.30961676]
[1717748113694,0.24701348,71101.0,71100.0,0.075]
[1717748114116,0.24601348,71101.0,71100.0,0.29229647]
[1717748114329,0.24601348,71101.0,71100.0,0.072]
[1717748114569,0.24701348,71101.0,71100.0,0.075]
[1717748115184,0.24701348,71101.0,71100.0,0.007]
[1717748115394,0.24701348,71101.0,71100.0,0.075]
[1717748116738,0.24701348,71101.0,71100.0,0.22729647]
[1717748116950,0.24701348,71101.0,71100.0,0.21729647]
[1717748117159,0.24701348,71101.0,71100.0,0.29529647]
[1717748119274,0.24701348,71101.0,71100.0,0.28529647]
[1717748119489,0.24701348,71101.0,71100.0,0.29529647]
[1717748119688,0.24701348,71101.0,71100.0,0.28529647]
[1717748120129,0.24701348,71101.0,71100.0,0.29529647]
[1717748125777,0.24701348,71101.0,71100.0,0.075]
[1717748126013,0.08371348,71101.0,71100.0,0.29529647]
[1717748126221,0.00211348,71101.0,71100.0,0.29529647]
[1717748127666,0.00211348,71101.0,71100.0,0.29474216]
[1717748127893,0.00211348,71101.0,71100.0,0.37284216]
[1717748128869,0.00211348,71101.0,71100.0,0.57284216]
[1717748129081,0.00211348,71101.0,71100.0,0.37284216]
[1717748129513,0.00211348,71101.0,71100.0,0.57284216]
[1717748130133,0.00211348,71101.0,71100.0,0.37284216]
[1717748130544,0.00211348,71101.0,71100.0,0.71726109]
[1717748130750,0.00211348,71101.0,71100.0,1.45774316]
[1717748130959,0.00211348,71101.0,71100.0,1.65221641]
[1717748131659,0.00111348,71101.0,71100.0,1.64921641]
[1717748132126,0.00111348,71101.0,71100.0,1.54358759]
[1717748132340,0.00111348,71101.0,71100.0,1.64893105]
[1717748132564,0.00211348,71101.0,71100.0,1.65693105]
[1717748132779,0.00111348,71101.0,71100.0,1.64893105]
[1717748133199,0.00211348,71101.0,71100.0,1.55158759]
[1717748133428,0.00111348,71101.0,71100.0,1.54858759]
[1717748133861,0.00111348,71101.0,71100.0,1.55658759]
[1717748133862,0.00211348,71101.0,71100.0,1.55658759]
[1717748134082,0.00211348,71101.0,71100.0,1.70468759]
[1717748134297,0.00211348,71101.0,71100.0,1.63668759]
[1717748134508,0.00211348,71101.0,71100.0,1.70468759]
[1717748138114,0.00211348,71101.0,71100.0,1.70466569]
[1717748141396,0.00211348,71101.0,71100.0,1.3929614]
[1717748141607,0.00211348,71101.0,71100.0,1.70466569]
[1717748144247,0.00211348,71101.0,71100.0,1.81000576]
[1717748147108,0.00211348,71101.0,71100.0,2.08595869]
[1717748148349,0.00111348,71101.0,71100.0,2.07795869]
[1717748149114,0.00111348,71101.0,71100.0,1.65566222]
[1717748149316,0.00111348,71101.0,71100.0,2.06995869]
[1717748149495,0.00011348,71101.0,71100.0,2.06995869]
[1717748149693,0.00011348,71101.0,71100.0,2.09795869]
[1717748149694,0.00111348,71101.0,71100.0,2.09795869]
[1717748150062,0.00211348,71101.0,71100.0,2.09795869]
[1717748150200,0.00211348,71101.0,71100.0,1.67566222]
[1717748150407,0.00211348,71101.0,71100.0,2.09795869]
[1717748152545,0.00211348,71101.0,71100.0,1.67566222]
[1717748152756,0.00211348,71101.0,71100.0,2.09795869]
[1717748154935,0.00211348,71101.0,71100.0,2.09890469]
[1717748155347,0.00211348,71101.0,71100.0,2.09888132]
[1717748157293,1.732802,71109.0,71108.0,0.560631]
[1717748157501,1.732802,71109.0,71108.0,0.79604993]
[1717748157718,1.732802,71109.0,71108.0,0.80057464]
[1717748157934,1.732802,71109.0,71108.0,0.86857464]
[1717748159842,1.732802,71109.0,71108.0,0.87657464]
[1717748160155,1.732802,71109.0,71108.0,0.88357464]
[1717748161201,1.732802,71109.0,71108.0,0.78357464]
[1717748161489,1.965502,71109.0,71108.0,0.40329647]
[1717748161718,1.965502,71109.0,71108.0,0.34540535]
[1717748161946,1.965502,71109.0,71108.0,0.40329647]
[1717748164421,1.965502,71109.0,71108.0,0.183]
[1717748164616,1.965502,71109.0,71108.0,0.40329647]
[1717748166091,1.965502,71109.0,71108.0,0.183]
[1717748167597,1.965502,71109.0,71108.0,0.40329647]
[1717748168332,1.965502,71109.0,71108.0,0.30329647]
[1717748168561,1.965502,71109.0,71108.0,0.40329647]
[1717748170393,1.965502,71109.0,71108.0,0.44540917]
[1717748170594,1.965502,71109.0,71108.0,0.44543983]
[1717748170798,1.965502,71109.0,71108.0,0.43543983]
[1717748171159,1.965502,71109.0,71108.0,0.44543983]
[1717748171785,1.965502,71109.0,71108.0,0.44544547]
[1717748171987,1.965502,71109.0,71108.0,0.34544547]
[1717748172194,1.965502,71109.0,71108.0,0.40329647]
[1717748172614,1.965502,71109.0,71108.0,0.30329647]
[1717748172843,1.965502,71109.0,71108.0,0.40329647]
[1717748173639,1.965502,71109.0,71108.0,0.39329647]
[1717748173982,1.965502,71109.0,71108.0,0.26745844]
[1717748174189,1.965502,71109.0,71108.0,0.33545844]
[1717748174394,1.965502,71109.0,71108.0,0.29329647]
[1717748177492,1.965502,71109.0,71108.0,0.22529647]
[1717748177755,1.965502,71109.0,71108.0,0.29329647]
[1717748178434,1.965502,71109.0,71108.0,0.22529647]
[1717748179602,1.965502,71109.0,71108.0,0.29329647]
[1717748182865,1.965502,71109.0,71108.0,0.283]
[1717748183334,1.965502,71109.0,71108.0,0.015]
[1717748184537,2.106131,71109.0,71108.0,0.015]
[1717748184723,2.106131,71109.0,71108.0,0.007]
[1717748185445,0.228,71108.0,71106.0,0.2]
[1717748185672,0.228,71108.0,71107.0,0.2]
[1717748187983,0.228,71108.0,71107.0,0.202]
[1717748188233,0.368631,71108.0,71107.0,0.002]
[1717748189125,0.368631,71108.0,71107.0,0.003]
[1717748189582,0.368631,71108.0,71107.0,0.002]
[1717748190067,0.368631,71108.0,71107.0,0.001]
[1717748190297,0.368631,71108.0,71107.0,0.003]
[1717748190539,0.368631,71108.0,71107.0,0.203]
[1717748190754,0.368631,71108.0,71107.0,0.202]
[1717748190968,0.368631,71108.0,71107.0,0.203]
[1717748191184,0.368631,71108.0,71107.0,0.001]
[1717748191638,0.368631,71108.0,71107.0,0.003]
[1717748191872,0.368631,71108.0,71107.0,0.001]
[1717748192347,0.368631,71108.0,71107.0,9.3e-05]
[1717748192758,0.368631,71108.0,71107.0,0.001093]
[1717748193190,0.368631,71108.0,71107.0,0.002093]
[1717748193429,0.368631,71108.0,71107.0,9.3e-05]
[1717748193566,0.368631,71108.0,71107.0,0.001093]
[1717748193944,0.368631,71108.0,71107.0,0.002093]
[1717748194177,0.368631,71108.0,71107.0,9.3e-05]
[1717748194378,0.368631,71108.0,71107.0,0.001093]
[1717748194590,0.368631,71108.0,71107.0,0.003093]
[1717748194799,0.368631,71108.0,71107.0,0.001093]
[1717748195655,0.368631,71108.0,71107.0,0.07332124]
[1717748195880,0.368631,71108.0,71107.0,0.28361771]
[1717748196102,0.368631,71108.0,71107.0,0.27232124]
[1717748196330,0.369631,71108.0,71107.0,0.27232124]
[1717748196544,0.370631,71108.0,71107.0,0.27232124]
[1717748197471,0.370631,71108.0,71107.0,0.07232124]
[1717748197472,0.368631,71108.0,71107.0,0.07232124]
[1717748197895,0.368631,71108.0,71107.0,0.07532124]
[1717748198130,0.368631,71108.0,71107.0,0.27332124]
[1717748198670,0.369631,71108.0,71107.0,0.07332124]
[1717748199056,0.369631,71108.0,71107.0,0.07232124]
[1717748199389,0.370631,71108.0,71107.0,0.07232124]
[1717748199795,0.369631,71108.0,71107.0,0.07232124]
[1717748199997,0.368631,71108.0,71107.0,0.07232124]
[1717748200206,0.368631,71108.0,71107.0,0.07332124]
[1717748200405,0.368631,71108.0,71107.0,0.27532124]
[1717748200630,0.368631,71108.0,71107.0,0.27332124]
[1717748201078,0.368631,71108.0,71107.0,0.27432124]
[1717748201279,0.368631,71108.0,71107.0,0.27232124]
[1717748201780,0.368631,71108.0,71107.0,0.27432124]
[1717748202403,0.368631,71108.0,71107.0,0.27532124]
[1717748202966,0.368631,71108.0,71107.0,0.27432124]
[1717748203238,0.368631,71108.0,71107.0,0.27232124]
[1717748203463,0.368631,71108.0,71107.0,0.07332124]
[1717748203904,0.368631,71108.0,71107.0,0.27332124]
[1717748204129,0.368631,71108.0,71107.0,0.07532124]
[1717748204351,0.368631,71108.0,71107.0,0.27532124]
[1717748204779,0.368631,71108.0,71107.0,0.003093]
[1717748205693,0.368631,71108.0,71107.0,0.203093]
[1717748209552,0.368631,71108.0,71107.0,0.21338947]
[1717748209791,0.368631,71108.0,71107.0,0.203093]
[1717748210202,0.368631,71108.0,71107.0,0.21338947]
[1717748211329,0.368631,71108.0,71107.0,0.203093]
[1717748211511,0.368631,71108.0,71107.0,0.003093]
[1717748211922,0.368631,71108.0,71107.0,0.203093]
[1717748212847,0.368631,71108.0,71107.0,0.003093]
[1717748213059,0.368631,71108.0,71107.0,0.203093]
[1717748213275,0.368631,71108.0,71107.0,0.003093]
[1717748213536,0.368631,71108.0,71107.0,0.203093]
[1717748214011,0.368631,71108.0,71107.0,0.003093]
[1717748214611,0.368631,71108.0,71107.0,0.203093]
[1717748215493,0.368631,71108.0,71107.0,0.003093]
[1717748216755,0.368631,71108.0,71107.0,0.203093]
[1717748216968,0.368631,71108.0,71107.0,0.003093]
[1717748218560,0.369491,71108.0,71107.0,0.003093]
[1717748219964,0.369491,71108.0,71107.0,0.203093]
[1717748220180,0.369491,71108.0,71107.0,0.003093]
[1717748221229,0.369491,71108.0,71107.0,0.203093]
[1717748222506,0.369491,71108.0,71107.0,0.21338947]
[1717748224884,0.369491,71108.0,71107.0,0.203093]
[1717748227366,0.369491,71108.0,71107.0,0.003093]
[1717748227987,0.00086,71108.0,71107.0,0.003093]
[1717748228186,0.141491,71108.0,71107.0,0.203093]
[1717748228406,0.141491,71108.0,71107.0,0.003093]
[1717748229500,0.141491,71108.0,71107.0,0.203093]
[1717748229697,0.141491,71108.0,71107.0,0.003093]
[1717748229908,0.141491,71108.0,71107.0,0.203093]
[1717748230923,0.141491,71108.0,71107.0,0.20338947]
[1717748231118,0.221491,71108.0,71107.0,0.203093]
[1717748231962,0.221491,71108.0,71107.0,0.21338947]
[1717748232132,0.221491,71108.0,71107.0,0.203093]
[1717748233410,0.221491,71108.0,71107.0,0.21338947]
[1717748236823,0.221491,71108.0,71107.0,0.003093]
[1717748238013,0.221491,71108.0,71107.0,0.21338947]
[1717748238232,0.221491,71108.0,71107.0,0.203093]
[1717748238647,0.221491,71108.0,71107.0,0.003093]
[1717748238847,0.221491,71108.0,71107.0,0.203093]
[1717748239367,0.221491,71108.0,71107.0,0.003093]
[1717748240025,0.221491,71108.0,71107.0,0.203093]